{"text_format":"3","workbook":"xlsx","n_sheets":1,"sheets":["PRICE SCHEDULE"],"not_rendered":{"defined_names":2},"read":"whole","date_system":"1900"}

{"sheet":"PRICE SCHEDULE","index":0,"n_rows":245,"n_cols":8,"rows_kept":245,"merged":[[0,2,0,8],[1,2,1,8],[3,4,3,6],[4,1,4,3],[4,4,4,6],[6,1,6,7],[8,1,38,1],[39,1,63,1],[64,1,73,1],[74,1,128,1],[129,1,141,1],[142,1,147,1],[148,1,163,1],[164,1,225,1],[164,2,164,7],[170,2,170,7],[186,2,186,7],[192,2,192,7],[221,2,221,7],[226,1,231,1],[234,2,234,7],[235,1,241,1],[244,2,244,7]]}
[null,null,"Arlington County Government"]
[null,null,"ATTACHMENT A - PRICE SCHEDULE (23-DES-ITBPW-631)"]
[]
[null,"NAME OF OFFEROR OR CONTRACTOR",null,null,"SOLICITATION OR CONTRACT NUMBER",null,null,"PAGE"]
[]
[null,"SCOPE OF WORK"]
[null,"The Contractor shall provide all the labor, materials, tools, parts, supplies, equipment, transportation and supervision necessary to complete the various signal maintenance tasks outlined in the items below and in accordance with the contract documents."]
[null,null,"ITEM NO.","SUPPLIES/SERVICES","EST QTY","UNIT","UNIT PRICE","AMOUNT"]
[null,"Conduit and Cables",1,"Furnish 2\" Steel Conduit and Fittings",200,"LF",null,{"$f":"E9*G9","v":0}]
[null,null,2,"Furnish 3\" Steel Conduit and Fittings",200,"LF",null,{"$f":"E10*G10","v":0}]
[null,null,3,"Furnish 4\" Steel Conduit and Fittings",200,"LF",null,0]
[null,null,4,"Furnish 2\" PVC Conduit and Fittings",{"v":2500,"d":"2,500"},"LF",null,0]
[null,null,5,"Furnish 3\" PVC Conduit and Fittings",{"v":2500,"d":"2,500"},"LF",null,0]
[null,null,6,"Furnish 4\" PVC Conduit and Fittings",{"v":2500,"d":"2,500"},"LF",null,0]
[null,null,7,"Furnish 2\" HDPE Conduit and Fittings",{"v":5000,"d":"5,000"},"LF",null,0]
[null,null,8,"Furnish 3\" HDPE Conduit and Fittings",{"v":5000,"d":"5,000"},"LF",null,0]
[null,null,9,"Furnish 4\" HDPE Conduit and Fittings",{"v":2500,"d":"2,500"},"LF",null,0]
[null,null,10,"Furnish 2\" Rigid Metallic Conduit",500,"LF",null,0]
[null,null,11,"Trench and Install conduit(s) in Asphalt \n(w tracer wire or grounding wire)",600,"LF",null,0]
[null,null,12,"Trench and Install Conduit(s) in Concrete Sidewalk",600,"LF",null,0]
[null,null,13,"Trench and Install Conduit(s) in Pavers",600,"LF",null,0]
[null,null,14,"Trench and Install Conduit(s) in Landscape Area",600,"LF",null,0]
[null,null,15,"Direct Bore Conduits (small reamer)",{"v":8000,"d":"8,000"},"LF",null,0]
[null,null,16,"Direct Bore Conduits (large reamer)",{"v":3500,"d":"3,500"},"LF",null,0]
[null,null,17,"Test Pit in Roadway",150,"EA",null,0]
[null,null,18,"Test Pit in Concrete",150,"EA",null,0]
[null,null,19,"Test Pit in Pavers",150,"EA",null,0]
[null,null,20,"Test Pit in Landscape Area",150,"EA",null,0]
[null,null,21,"Enter Existing Foundation",10,"EA",null,0]
[null,null,22,"Enter Existing Junction Box",25,"EA",null,0]
[null,null,23,"Furnish #14/7c Cable",{"v":40000,"d":"40,000"},"LF",null,0]
[null,null,24,"Furnish #14/3c Cable",{"v":20000,"d":"20,000"},"LF",null,0]
[null,null,25,"Furnish #12/2C UF Cable",{"v":10000,"d":"10,000"},"LF",null,0]
[null,null,26,"Furnish #6/2c UF Cable",{"v":5000,"d":"5,000"},"LF",null,0]
[null,null,27,"Furnish #6/3c UF Cable",{"v":5000,"d":"5,000"},"LF",null,0]
[null,null,28,"Furnish #6 Bare Copper",{"v":2000,"d":"2,000"},"LF",null,0]
[null,null,29,"Install Cabinet Side Entry",25,"EA",null,0]
[null,null,30,"Install Cable in Conduit, Mast Arm, or Pole",{"v":25000,"d":"25,000"},"LF",null,0]
[null,null,31,"Remove Cable From Conduit, Mast Arm, or Pole",{"v":10000,"d":"10,000"},"LF",null,0]
[null,"Foundations",32,"Install Cabinet Foundation ",20,"EA",null,0]
[null,null,33,"Install Cabinet Foundation with Stoop ",15,"EA",null,0]
[null,null,34,"Extend Existing Cabinet Foundation ",20,"EA",null,0]
[null,null,35,"Remove Cabinet Foundation",30,"EA",null,0]
[null,null,36,"Install UPS System",30,"EA",null,0]
[null,null,37,"Install Strain Pole Foundation ",10,"EA",null,0]
[null,null,38,"Remove Strain Pole Foundation",40,"EA",null,0]
[null,null,39,"Install Pedestal Pole Foundation",60,"EA",null,0]
[null,null,40,"Remove Pedestal Pole Foundation",60,"EA",null,0]
[null,null,41,"Install Carlyle Streetlight Pole Foundation",100,"EA",null,0]
[null,null,42,"Remove Streetlight Pole Foundation",60,"EA",null,0]
[null,null,43,"Install Cobrahead Streetlight Pole Foundation ",50,"EA",null,0]
[null,null,44,"Remove Cobrahead Pole Foundation",50,"EA",null,0]
[null,null,45,"Install Mast Arm Pole Foundation Std Type #1 ",25,"EA",null,0]
[null,null,46,"Install Mast Arm Pole Foundation Std Type #2 ",25,"EA",null,0]
[null,null,47,"Install Mast Arm Pole Foundation Std Type #3",25,"EA",null,0]
[null,null,48,"Install Mast Arm Pole Foundation Std Type #4",25,"EA",null,0]
[null,null,49,"Install Mast Arm Pole Foundation Std Type #5",15,"EA",null,0]
[null,null,50,"Install Mast Arm Pole Foundation Std Type #6",15,"EA",null,0]
[null,null,51,"Install Mast Arm Pole Foundation Std Type #7",15,"EA",null,0]
[null,null,52,"Install Mast Arm Pole Foundation Std Type #8",15,"EA",null,0]
[null,null,53,"Install Mast Arm Pole Foundation Std Type #9",10,"EA",null,0]
[null,null,54,"Install Mast Arm Pole Foundation Std Type #10",10,"EA",null,0]
[null,null,55,"Install Compact Pole Foundation ",10,"EA",null,0]
[null,null,56,"Remove Signal Pole Foundation",40,"EA",null,0]
[null,"Junction Boxes",57,"Furnish and Install Small Junction Box (61-01)",50,"EA",null,0]
[null,null,58,"Furnish and Install Traffic-Rated Circular Junction Box (61-02)\n(including frame and cover)",150,"EA",null,0]
[null,null,59,"Furnish and Install Large Size Junction Box (61-04, Type 3)",150,"EA",null,0]
[null,null,60,"Furnish and Install Large Size Junction Box (61-04, Type 4)",20,"EA",null,0]
[null,null,61,"Furnish and Install large Size Junction Box (61-04, Type 5)",20,"EA",null,0]
[null,null,62,"Adjust Existing Junction Box to Grade",50,"EA",null,0]
[null,null,63,"Furnish and Install Junction Box Lid",50,"EA",null,0]
[null,null,64,"Remove Small Junction Box",150,"EA",null,0]
[null,null,65,"Remove Circular Junction Box",150,"EA",null,0]
[null,null,66,"Remove Large Size junction box",50,"EA",null,0]
[null,"Traffic Signals and Equipment",67,"Install Ground Mounted Cabinet",20,"EA",null,0]
[null,null,68,"Install Pole Mounted Cabinet",5,"EA",null,{"$f":"E76*G76","v":0}]
[null,null,69,"Remove & Salvage Cabinet",30,"EA",null,0]
[null,null,70,"Furnish and Install Meter Pan & Pedestal (80-01)",30,"EA",null,0]
[null,null,71,"Remove meter pan and pedestal",10,"EA",null,0]
[null,null,72,"Install signal pole and single mast arm",100,"EA",null,0]
[null,null,73,"Remove signal pole and single mast arm",100,"EA",null,0]
[null,null,74,"Install signal pole and double mast arm",50,"EA",null,0]
[null,null,75,"Remove signal pole and double mast arm",25,"EA",null,0]
[null,null,76,"Install pedestal pole",100,"EA",null,0]
[null,null,77,"Remove pedestal pole",100,"EA",null,0]
[null,null,78,"Furnish and Install wood pole",10,"EA",null,0]
[null,null,79,"Remove wood pole",10,"EA",null,0]
[null,null,80,"Furnish and Install Strain Pole",20,"EA",null,0]
[null,null,81,"Remove strain pole",20,"EA",null,0]
[null,null,82,"Furnish and Install transformer bases",15,"EA",null,0]
[null,null,83,"Install Carlyle Streetlight Pole",100,"EA",null,0]
[null,null,84,"Remove Carlyle Streetlight Pole",100,"EA",null,0]
[null,null,85,"Install Single Carlyle fixture",100,"EA",null,0]
[null,null,86,"Install Double Carlyle Fixture",100,"EA",null,0]
[null,null,87,"Remove carlyle fixture (single or double)",150,"EA",null,0]
[null,null,88,"Install Cobrahead Streetlight Pole and Fixture",50,"EA",null,0]
[null,null,89,"Remove cobrahead streetlight pole and fixture",50,"EA",null,0]
[null,null,90,"Assemble and Install 3-section Vehicle Signal Head",200,"EA",null,0]
[null,null,91,"Assemble and Install 5-section Vehicle Signal Head",200,"EA",null,0]
[null,null,92,"Assemble and Install 4-section Vehicle Signal Head",200,"EA",null,0]
[null,null,93,"Assemble and Install HAWK Vehicle Signal Head",100,"EA",null,0]
[null,null,94,"Remove Signal Head",280,"EA",null,0]
[null,null,95,"Assemble and Install LED Blank-out Sign",20,"EA",null,0]
[null,null,96,"Remove LED Blank-out Sign",10,"EA",null,0]
[null,null,97,"Assemble and Install Programmable Signal Head",10,"EA",null,0]
[null,null,98,"Remove Programmable Signal Head",10,"EA",null,0]
[null,null,99,"Install Sign on Mast Arm or Signal Pole",50,"EA",null,0]
[null,null,100,"Install Louvers (1 section)",30,"EA",null,0]
[null,null,101,"Install Backplate on Existing Signal Head",400,"EA",null,0]
[null,null,102,"Install LED Countdown Module",{"v":1200,"d":"1,200"},"EA",null,0]
[null,null,103,"Install Pedestrian Signal",100,"EA",null,0]
[null,null,104,"Remove Pedestrian Signal",200,"EA",null,0]
[null,null,105,"Install Pedestrian Pushbutton (Mushroom or ADA style)",250,"EA",null,0]
[null,null,106,"Assemble and Install 2-wire Polara-style APS",400,"EA",null,0]
[null,null,107,"Assemble and Install 4-wire Polara-style APS",200,"EA",null,0]
[null,null,108,"Remove Pushbutton (includes cable, hardware. new grommets)",5,"EA",null,0]
[null,null,109,"Install Overhead Detector",100,"EA",null,0]
[null,null,110,"Remove Overhead Detector (includes cable removal)",1,"EA",null,0]
[null,null,111,"Install Detection Communication Board",100,"EA",null,0]
[null,null,112,"Integrate Video Detection System",40,"EA",null,0]
[null,null,113,"Install Pre-emption Detector",100,"EA",null,0]
[null,null,114,"Remove Preemption Detector (includes cable)",1,"EA",null,0]
[null,null,115,"Retrofit Existing Pre-emption with Confirmation light (incl confirmation light material)",10,"EA",null,0]
[null,null,116,"Integrate Pre-emption System",100,"EA",null,0]
[null,null,117,"Install Battery Backup System",5,"EA",null,0]
[null,null,118,"Remove Battery Backup System",1,"EA",null,0]
[null,null,120,"Install CCTV Camera",50,"EA",null,0]
[null,null,121,"Replace CCTV Camera",50,"LS",null,0]
[null,null,122,"Remove CCTV camera",50,"EA",null,0]
[null,"Overhead",123,"Install Aerial Cable",{"v":5000,"d":"5,000"},"LF",null,0]
[null,null,124,"Straighten Overhead Span Cable",{"v":5000,"d":"5,000"},"LF",null,0]
[null,null,125,"Furnish and Install Down Guy",50,"EA",null,0]
[null,null,126,"Furnish and Install Sidewalk Guy",50,"EA",null,0]
[null,null,127,"Furnish and Install 2\" riser (up to 40' High) with Weatherhead",50,"EA",null,0]
[null,null,128,"Install Cable With Lashing Rods on Messenger\n(includes furnishing lashing rods)",{"v":5000,"d":"5,000"},"LF",null,0]
[null,null,129,"Remove Steel Span with Messenger",{"v":2000,"d":"2,000"},"LF",null,0]
[null,null,130,"Furnish and Install Steel Messenger Span with Lashing Rods",{"v":2000,"d":"2,000"},"LF",null,0]
[null,null,131,"Remove Aerial Communications Cable",{"v":10000,"d":"10,000"},"LF",null,0]
[null,null,132,"Install Signal Head on Span cable",100,"EA",null,0]
[null,null,133,"Install Sign on Span Cable",100,"EA",null,0]
[null,null,134,"Remove Sign from Span Wire or Mast Arm (remove hanger, braket, etc)",10,"EA",null,0]
[null,null,135,"Remove down guy",100,"EA",null,0]
[null,"Roadside Assemblies",136,"Assemble and Install Speed Indicator Assembly \n(incl speed feedback sign and signage, control box, solar assembly)",30,"EA",null,0]
[null,null,137,"Assemble and Install RRFB Assembly \n(incl flashers, pushbutton, and signage, solar array, control box)",30,"EA",null,0]
[null,null,138,"Assemble and Install School Zone Beacon Assembly \n(incl signals, signage, control box, solar array)",30,"EA",null,0]
[null,null,139,"Assemble and Install Count Station \n(incl control box, cable)",30,"EA",null,0]
[null,null,140,"Remove Roadside Beacon Assembly",5,"EA",null,0]
[null,null,141,"Preventative Maintenance for Roadside Assembly",20,"EA",null,0]
[null,"Typical Maintenance",142,"Overhead Signal Preventative Maintenance For Smaller Intersections",125,"EA",null,{"$f":"E149*G149","v":0}]
[null,null,143,"Overhead Signal Preventative Maintenance For Larger Intersections",275,"EA",null,0]
[null,null,144,"Cabinet Preventative Maintenance",600,"EA",null,0]
[null,null,145,"School Beacon Preventative Maintenance",180,"EA",null,0]
[null,null,146,"Replace Cabinet in place",20,"EA",null,0]
[null,null,147,"Replace LED Modules in Overhead Signal \n(assume 5-section head)",{"v":3600,"d":"3,600"},"EA",null,0]
[null,null,148,"CCTV Camera Maintenance",360,"EA",null,0]
[null,null,149,"Replace Traffic Signal Mast Arm and Pole\n(existing in service)",5,"EA",null,0]
[null,null,150,"Replace Traffic Signal Strain Pole \n(existing in service)",5,"EA",null,0]
[null,null,151,"Install Loop Detector Stub Out",100,"EA",null,0]
[null,null,152,"Splice Loop and Terminate in Cabinet",100,"EA",null,0]
[null,null,153,"Install Loop Detector",{"v":10000,"d":"10,000"},"LF",null,0]
[null,null,154,"Install Junction Box Grounding System",100,"EA",null,0]
[null,null,155,"Install Primary Intersection Grounding Electrode",100,"EA",null,0]
[null,null,156,"Troubleshoot Equipment",100,"HRS",null,0]
[null,null,157,"Crash Truck (TMA) for Work on High-Speed Roadways",250,"HRS",null,0]
[null,"Roadway Elements","GENERAL EARTHWORK"]
[null,null,158,"General Excavation, only when not included in other pay items",500,"CY",null,{"$f":"E166*G166","v":0}]
[null,null,159,"Select Borrow (VDOT Section 207 - Select Material, Type I)",50,"CY",null,{"$f":"E167*G167","v":0}]
[null,null,160,"Flowable BackFill (VDOT Special Provision S302G02-0610)",10,"CY",null,0]
[null,null,161,"Aggregate, VDOT #21-A  (Compacted in Place per VDOT standards & Specs)",50,"CY",null,0]
[null,null,162,"Aggregate, VDOT #21-B  (Compacted in Place per VDOT standards & Specs)",50,"CY",null,0]
[null,null,"CONCRETE WORK"]
[null,null,163,"Concrete Curb, Standard Header Curb C-3 (Arlington County Detail R-2.0), includes curb for aprons, ramps, etc.",{"v":1000,"d":"1,000"},"LF",null,{"$f":"E172*G172","v":0}]
[null,null,164,"Concrete Curb, Standard 6\" (VDOT CG-2), includes curb for aprons, ramps, etc.",500,"LF",null,{"$f":"E173*G173","v":0}]
[null,null,165,"Concrete Curb & Gutter, Standard C-2 and C-2R (Arlington County Detail R-2.0), includes curb & gutter for aprons, ramps, etc.",{"v":3000,"d":"3,000"},"LF",null,0]
[null,null,166,"Concrete Curb & Gutter, Combination 6\" (VDOT CG-6), includes curb & gutter for aprons, ramps, etc.",{"v":1500,"d":"1,500"},"LF",null,0]
[null,null,167,"Concrete Sidewalk, 4\" Thickness (Arlington County Detail R-2.0)",{"v":2500,"d":"2,500"},"SY",null,0]
[null,null,168,"Concrete Sidewalk, 4\" Thickness with WWF (VDOT Secton 223.02.a.3)",250,"SY",null,0]
[null,null,169,"Concrete Sidewalk, 6\" Thickness",500,"SY",null,0]
[null,null,170,"Concrete Sidewalk, 6\" Thickness with WWF (Arlington County Standard H-3.1)",250,"SY",null,0]
[null,null,171,"CG-12 Detectable Warning Surface - Truncated Domes",150,"SY",null,0]
[null,null,172,"Concrete Pavers (Arlington County Detail R-2.1)",500,"SY",null,0]
[null,null,173,"Concrete Pavers, Remove and Reset (Arlington County Detail R-2.1)",500,"SY",null,0]
[null,null,174,"Concrete Driveway Entrance, 6\" Thick Residential (Arlington County Details R-2.4A, R-2.4B, R-2.4C, R-2.4D)",500,"SY",null,0]
[null,null,175,"Concrete Driveway Entrance, 9\" Thick Commercial (Arlington County Details R-2.4A, R-2.4B, R-2.4C, R-2.4D)",500,"SY",null,0]
[null,null,176,"Concrete Steps Each (Arlington County Detail R-3.0, including all reinforcing bars as shown in detail)",50,"LF-W",null,0]
[null,null,177,"Bus Shelter Pad (Detail R-2.10)",50,"SY",null,0]
[null,null,"ASPHALT WORK"]
[null,null,178,"Asphalt Concrete, Planing or Milling (1/2\" to 3\" Depth)",500,"SY",null,{"$f":"E188*G188","v":0}]
[null,null,179,"Asphalt Concrete, Base Course (VDOT BM-25.0A or VDOT BM-25.D)",250,"TON",null,{"$f":"E189*G189","v":0}]
[null,null,180,"Asphalt Concrete, Intermediate Course (VDOT IM-19.0A or VDOT IM-19.0D)",50,"TON",null,0]
[null,null,181,"Asphalt Concrete, Surface Course (VDOT SM-9.5A or VDOT SM-9.5D)",500,"TON",null,0]
[null,null,182,"Cold-Mix Asphalt (latest VDOT Standards for Cold Mix Asphalt Type P-1, P-2, and P-3).",50,"TON",null,0]
[null,null,"PAVEMENT MARKING AND SIGNAGE"]
[null,null,183,"Furnish and Install 4 Inch Transverse Markings",500,"LF",null,{"$f":"E194*G194","v":0}]
[null,null,184,"Furnish and Install 6 Inch Transverse Markings",500,"LF",null,{"$f":"E195*G195","v":0}]
[null,null,185,"Furnish and InstallL 12 Inch Transverse Markings",{"v":2000,"d":"2,000"},"LF",null,0]
[null,null,186,"Furnish and Install 18 Inch Transverse Markings",{"v":2000,"d":"2,000"},"LF",null,0]
[null,null,187,"Furnish and Install 24 Inch Transverse Markings",{"v":2000,"d":"2,000"},"LF",null,0]
[null,null,188,"Furnish and Install Yeild Line Markings\n(24 Inch Triangle/12 Inch Spacing)",{"v":1000,"d":"1,000"},"LF",null,0]
[null,null,189,"Furnish and Install 4 Inch Longitudinal Solid Line",{"v":6000,"d":"6,000"},"LF",null,0]
[null,null,190,"Furnish and Install 4 Inch Longitudinal Skip Line",{"v":6000,"d":"6,000"},"LF",null,0]
[null,null,191,"Furnish and Install 6 Inch Longitudinal Solid Line",{"v":6000,"d":"6,000"},"LF",null,0]
[null,null,192,"Furnish and Install 6 Inch Longitudinal Skip Line",{"v":6000,"d":"6,000"},"LF",null,0]
[null,null,193,"Furnish and Install 8 Inch Longitudinal Solid Line",{"v":6000,"d":"6,000"},"LF",null,0]
[null,null,194,"Furnish and Install 8 Inch Longitudinal Skip Line",{"v":6000,"d":"6,000"},"LF",null,0]
[null,null,195,"Furnish and Install 12 Inch Longitudinal Solid Line",{"v":1000,"d":"1,000"},"LF",null,0]
[null,null,196,"Furnish and Install Double Yellow Center Line\n(4\" Lines with 4\" Space)",{"v":10000,"d":"10,000"},"LF",null,0]
[null,null,197,"Furnish and Install 8' Letters",100,"EA",null,0]
[null,null,198,"Furnish and Install Arrow Symbol",100,"EA",null,0]
[null,null,199,"Furnish and Install Combination Arrow Symbol",100,"EA",null,0]
[null,null,200,"Furnish and Install Lane Reduction Arrow Symbol",25,"EA",null,0]
[null,null,201,"Furnish and Install 13' Yield Ahead Markings",25,"EA",null,0]
[null,null,202,"Furnish and Install Bicycle Lane Symbol",25,"EA",null,0]
[null,null,203,"Furnish and Install Shared Lane Symbol",25,"EA",null,0]
[null,null,204,"Furnish and Install 6' Bicycle Lane Symbol",25,"EA",null,0]
[null,null,205,"Colorized Bike Lane Coatings (per Specification 02900)",150,"SY",null,0]
[null,null,206,"Pavement Marking Type D, Temporary Pavement Marking Tape",500,"LF",null,0]
[null,null,207,"Traffic Control Sign (Typical Stop, Yield, No Parking, Speed Limit, or Similar)",100,"EA",null,0]
[null,null,208,"Traffic Control Sign (Typical Stop, Yield, No Parking, Speed Limit, or Similar), Relocate with Existing Post",50,"EA",null,0]
[null,null,209,"Traffic Control Sign (Typical Stop, Yield, No Parking, Speed Limit, or Similar), Relocate with New Post",50,"EA",null,0]
[null,null,210,"Traffic Control Sign (Typical Stop, Yield, No Parking, Speed Limit, or Similar), Mount Sign to Light or Utility Pole",50,"EA",null,0]
[null,null,"LANDSCAPE AND HARDSCAPE WORK"]
[null,null,210,"Imported Topsoil",100,"CY",null,{"$f":"E223*G223","v":0}]
[null,null,211,"Seed, Mixture of 85% Tall Fescue/Bluegrass and 15% Annual Rye",250,"SY",null,{"$f":"E224*G224","v":0}]
[null,null,212,"Sod, Zoysia",250,"SY",null,0]
[null,null,213,"Brick Pavers, Including Concrete Base (Arlington County Detail R-2.1)",50,"SY",null,0]
[null,"Lump sum ",214,"Asphalt crew mobilization",25,"LS",null,{"$f":"E227*G227","v":0}]
[null,null,215,"Concrete crew mobilization",25,"LS",null,{"$f":"E228*G228","v":0}]
[null,null,216,"Pavement Marking crew mobilization",25,"LS",null,0]
[null,null,217,"Temporary Erosion & Sediment Controls",25,"LS",null,0]
[null,null,218,"Re-Mobilization of Asphalt, Concrete, Pavement Marking crew",10,"LS",null,0]
[]
[null,null,"GRAND TOTAL",{"$nulls":4},{"$f":"SUM(H9:H231)","v":{"v":0,"d":"$0.00"}}]
[]
[null,null,"Equipment and Labor for Minor Repairs (This bid pricing will be included in the contract, but not used in the evaluation or comparison of bids)"]
[null,null,"R1","Bucket Truck for Overhead Repairs",1,"HR",null,{"$f":"E236*G236","v":0}]
[null,null,"R2","Crane or Auger Line Truck",1,"HR",null,{"$f":"E237*G237","v":0}]
[null,null,"R3","Light Truck",1,"HR",null,0]
[null,null,"R4","Superintendent",1,"HR",null,0]
[null,null,"R5","Signal Technician",1,"HR",null,0]
[null,null,"R6","ITS Technician",1,"HR",null,0]
[null,null,"R7","Laborer",1,"HR",null,0]
[null,null,"NOTES:"]
[]
[null,null,"THE UNIT QUANTITIES ABOVE ARE ESTIMATED VALUES: This is a Fixed Unit-Price, Indefinite Quantity contract and the quantities above are estimates only. The quantities may exceed or be less than the estimated amounts and wil be determined upon actual services provided during the term of the contract."]